Cogmind - Beta 15 @@@ ROGUE MODE // 2025.07.08 @ 23:00:27 Player: Cracklepappy Result: Self-destructed Performance ------------- Evolutions (5) 2500 Regions Visited (23) 4600 Robots Destroyed (489) 2445 Value Destroyed (21710) 21710 Prototype IDs (61) 1220 Alien Tech Used (0) 0 Bonus (14180) 14180 TOTAL SCORE: 46655 Bonus ------- Triggered High Security 500 High Alert Combat Kills 7765 Follower Combat Kills 2272 Entered Garrisons 1200 Used RIF Installer 3000 Aligned with FarCom 300 Friendly Fire -857 Cogmind --------- Core Integrity 746/1000 Matter 196/300 Energy 325/325 System Corruption 30% Temperature Cool (0) Movement Rolling (103) Ox1 Location -5/Factory Parts ------- > --- POWER (1) -------- Reinforced Antimatter Reactor > --- PROPULSION (6) --- Wheel Wheel Armored Wheel Armored Wheel Armored Huge Wheel > --- UTILITY (6) ------ Advanced Heat Sink Huge Storage Unit Modified TNC Core Analyzer > --- WEAPON (4) ------- Wave Gun Railgun > --- INVENTORY (25) --- Cold Fusion Reactor Combat Antigrav System High-capacity Storage Unit Improved Matter Compressor (293) Advanced Recoil Stabilizer Cloak of Protection Graphene Brace Hacking Suite Authchip [Propulsion] Authchip [Propulsion] Authchip [Weapon] Authchip [Weapon] Relay Coupler [NC] (33) Advanced Component Analysis Suite High-powered Tractor Beam AS-neutralizer No. 17b Wave Gun Quantum Rifle Heavy Phase Cannon Antimatter Cannon Long-range Missile Launcher Improved Remote Datajack Field Lobotomy Kit (5) Plasma Cutter Power Sword Peak State ------------ > --- POWER ------------ Particle Reactor > --- PROPULSION ------- Light Treads Improved Heavy Treads Improved Heavy Treads > --- UTILITY ---------- Improved Cooling System Huge Storage Unit Modified TNC Core Analyzer Improved Light Armor Plating > --- WEAPON ----------- Enhanced Autogun Enhanced Autogun Enhanced Autogun Improved Remote Datajack > --- INVENTORY -------- Cold Fusion Reactor Combat Antigrav System Advanced Heat Sink Improved Matter Compressor Cloak of Protection Graphene Brace Authchip [Propulsion] Authchip [Propulsion] Authchip [Weapon] Authchip [Weapon] Relay Coupler [NC] Relay Coupler [NC] Advanced Component Analysis Suite High-powered Tractor Beam AS-neutralizer No. 17b Quantum Rifle Enhanced Autogun Hypervelocity Gauss Rifle Hypervelocity Gauss Rifle KE Penetrator Railgun Long-range Missile Launcher Field Lobotomy Kit Plasma Cutter Scythe [Rating: 86] Favorites ----------- Power Reinforced Fission Core Engine Ion Engine Power Core Reinforced Fission Core Reactor Reinforced Antimatter Reactor Propulsion Light Treads Treads Light Treads Leg Aluminum Leg Wheel Armored Wheel Hover Unit Antigrav System Utility Huge Storage Unit Device Shield Generator Storage Huge Storage Unit Processor Modified TNC Hackware Relay Coupler [NC] Protection Light Armor Plating Weapon Improved Assault Rifle Energy Gun Particle Gun Energy Cannon Heavy Particle Cannon Ballistic Gun Improved Assault Rifle Ballistic Cannon Gauss Cannon Launcher Heavy Missile Launcher Special Weapon Remote Datajack Impact Weapon Heavy Hammer Slashing Weapon Scythe Special Melee Weapon Datajack Build | -11 -10 -10 -9 -9 -9 -8 -8 -8 -8 -8 -7 -7 -7 -7 -6 -6 -6 -6 -6 -6 -5 -5 -5 ------- Run | Yrd Mat Min Mat Min Exi Min Mat Gar Mat Gar Fac Gar Fac Gar Fac Was Fac Gar Fac Gar Fac Was Fac Slots Evolved 10 | . . . 2 . . . 2 . . . 2 . . . 2 . . . . . 2 . . Power . | . . . . . . . . . . . . . . . . . . . . . . . . Propulsion 4 | . . . 1 . . . . . . . 1 . . . 1 . . . . . 1 . . Utility 4 | . . . . . . . 1 . . . 1 . . . 1 . . . . . 1 . . Weapon 2 | . . . 1 . . . 1 . . . . . . . . . . . . . . . . Parts Attached 268 | 7 9 2 37 2 8 2 20 16 4 17 12 12 12 25 3 10 2 10 14 23 6 2 13 Power 25 | 1 1 1 6 1 2 . 1 . . . . . 2 3 . 3 . . 1 3 . . . Engine 12 | 1 1 1 6 1 1 . . . . . . . . . . . . . . 1 . . . Core 7 | . . . . . 1 . . . . . . . 2 3 . . . . 1 . . . . Reactor 6 | . . . . . . . 1 . . . . . . . . 3 . . . 2 . . . Propulsion 80 | 2 1 . 17 1 2 . 7 3 1 5 1 2 1 7 2 1 . 4 2 14 1 . 6 Treads 46 | 2 1 . 17 1 1 . 3 2 1 3 . 2 . 3 . . . 1 2 6 . . 1 Leg 4 | . . . . . . . . . . . . . . 4 . . . . . . . . . Wheel 29 | . . . . . 1 . 4 1 . 2 1 . 1 . 2 . . 3 . 8 1 . 5 Hover 1 | . . . . . . . . . . . . . . . . 1 . . . . . . . Flight . | . . . . . . . . . . . . . . . . . . . . . . . . Utility 60 | 2 3 1 4 . 1 1 5 6 1 3 7 3 1 4 1 2 1 2 3 3 2 1 3 Device 28 | 1 1 1 2 . . . 2 2 . 2 3 2 . 2 . 1 1 1 3 2 . . 2 Storage 7 | 1 1 . 1 . 1 . . . . . 2 . . . . 1 . . . . . . . Processor 3 | . . . . . . . 1 . . . 1 1 . . . . . . . . . . . Hackware 8 | . . . . . . . 1 . . . 1 . 1 2 1 . . 1 . . . 1 . Protection 14 | . 1 . 1 . . 1 1 4 1 1 . . . . . . . . . 1 2 . 1 Artifact . | . . . . . . . . . . . . . . . . . . . . . . . . Weapon 103 | 2 4 . 10 . 3 1 7 7 2 9 4 7 8 11 . 4 1 4 8 3 3 1 4 Energy Gun 18 | 1 1 . 1 . . . . 1 1 5 . . . 2 . 1 . 1 1 . 1 . 2 Energy Cannon 8 | . . . 1 . . . . . 1 . 1 1 2 . . 1 . . 1 . . . . Ballistic Gun 57 | 1 1 . 6 . 2 1 7 3 . 3 . 6 5 6 . 2 1 2 5 2 2 . 2 Ballistic Cannon 4 | . . . . . . . . . . . 2 . 1 1 . . . . . . . . . Launcher 4 | . 1 . 1 . . . . 1 . . . . . . . . . . 1 . . . . Special Weapon 7 | . 1 . . . . . . 1 . . 1 . . 2 . . . 1 . . . 1 . Impact Weapon 1 | . . . 1 . . . . . . . . . . . . . . . . . . . . Slashing Weapon 2 | . . . . . . . . 1 . . . . . . . . . . . 1 . . . Piercing Weapon . | . . . . . . . . . . . . . . . . . . . . . . . . Special Melee Weapon 2 | . . . . . 1 . . . . 1 . . . . . . . . . . . . . Unidentified Prototypes 8 | . . 1 3 . . . . . . . . . 1 1 . 2 . . . . . . . Parts Lost 48 | . 1 . 2 . . . 4 8 1 6 . . 2 6 . . . . 5 5 2 . 6 Power 1 | . . . . . . . . . . . . . . . . . . . . 1 . . . Propulsion 15 | . . . . . . . 1 3 . 1 . . . 2 . . . . 2 2 1 . 3 Utility 12 | . 1 . . . . . 2 1 . 2 . . 2 . . . . . 1 2 . . 1 Weapon 20 | . . . 2 . . . 1 4 1 3 . . . 4 . . . . 2 . 1 . 2 Highest Loss Streak 4 | . 1 . 1 . . . 4 3 1 3 . . 1 2 . . . . 4 3 1 . 2 To Critical Strikes 2 | . . . . . . . . . . . . . . 1 . . . . . . 1 . . Average Backups 18 | 4 9 10 14 15 16 19 18 18 18 19 21 23 22 23 22 22 23 23 23 24 24 24 24 Power . | . 1 . . . . 1 . 1 1 1 1 1 1 1 1 1 1 1 1 . 1 1 1 Propulsion 3 | 2 2 2 4 6 6 5 3 2 3 2 1 1 2 2 3 3 3 3 2 1 1 1 1 Utility 8 | . 1 2 3 2 3 7 7 8 9 10 13 13 12 14 13 13 13 12 12 12 13 13 14 Weapon 4 | . 4 4 5 6 6 5 3 2 2 2 2 4 3 2 2 3 3 3 4 7 5 6 6 Tool/Special . | . . . . . . . . . . . . . . . . . . . . . . . . Unused Backups 73 | . 6 2 13 . 6 . 5 2 4 3 1 1 2 5 . 3 . 1 2 2 . . 15 Power 5 | . . . . . 3 . . . . 1 1 . . . . . . . . . . . . Propulsion 16 | . 3 1 5 . 1 . 1 . 2 1 . . . 1 . . . . . . . . 1 Utility 36 | . 3 . 4 . 2 . . 2 2 1 . 1 2 3 . 3 . . 1 2 . . 10 Weapon 15 | . . 1 4 . . . 4 . . . . . . 1 . . . 1 1 . . . 3 Tool/Special 1 | . . . . . . . . . . . . . . . . . . . . . . . 1 Average Slot Usage (%) 93 | . 99 100 99 100 100 100 96 90 89 91 91 87 83 84 79 81 86 86 83 81 99 94 95 Engine 3 | . 14 14 11 11 10 . . . . . . . . . . . . . . . . . . Core 3 | . . . . . . 11 8 9 9 9 7 7 7 7 6 2 . . 3 . . . . Reactor 1 | . . . . . . . . . . . . . . . . 3 6 6 2 5 5 5 5 Treads 16 | . 28 28 33 33 32 22 19 10 9 7 2 7 9 8 2 . . . 4 14 . . 1 Wheel 7 | . . . . . . 11 5 8 9 12 20 11 5 2 10 13 13 18 12 2 34 29 28 Device 8 | . 5 . 8 11 11 9 2 8 9 15 20 11 4 6 6 5 6 11 12 8 11 11 6 Storage 8 | . 14 14 11 11 11 11 9 9 9 9 7 7 7 7 6 6 6 6 6 6 5 5 5 Processor 4 | . . . . . . . 2 . . . 2 10 15 15 13 13 13 13 13 13 11 11 11 Hackware 1 | . . . . . . . 6 . . . . . 2 . 5 6 6 1 . . . 4 5 Protection 3 | . 8 14 2 . . 1 6 9 9 2 . . . . . . . . . 2 4 . 3 Energy Gun 2 | . 3 . 1 . . . . 4 2 18 2 . . . 6 10 . . 1 . . 3 3 Ballistic Gun 26 | . 23 27 30 33 30 33 35 28 25 9 14 23 26 25 19 11 26 25 22 24 18 14 18 Peak Build Rating 86 | 8 8 14 22 21 42 38 61 55 54 51 55 80 81 77 83 77 78 81 83 86 78 76 83 Average Rating 46 | 5 7 8 19 20 27 37 43 50 52 44 47 68 73 68 67 72 77 79 80 79 75 73 77 On Entrance 49 | . 8 8 8 21 21 38 34 44 53 45 37 51 78 66 77 66 77 77 80 81 68 75 74 Naked Turns . | . . . . . . . . . . . . . . . . . . . . . . . . Heaviest Build 132 | 15 22 23 42 38 74 74 88 82 82 83 128 129 123 118 105 117 116 118 124 120 131 131 132 Greatest Support 170 | 40 40 40 63 66 66 12 60 60 28 40 52 150 150 150 150 56 56 68 150 170 72 60 78 Greatest Overweight (x) 10 | . . . . . 6 6 6 2 2 6 3 4 4 10 3 2 2 2 1 9 2 2 2 Average Overweight (x) 1 | . . . . . . 6 2 1 2 1 2 1 . . . 1 2 1 . . 1 2 1 Largest Inventory Capacity 25 | 8 10 10 15 15 20 20 20 20 20 20 25 25 25 25 25 25 25 25 25 25 25 25 25 Average Capacity 20 | 7 9 10 14 15 19 20 20 20 20 20 22 25 25 25 25 25 25 25 25 25 25 25 25 Most Carried 25 | 8 10 10 15 15 20 20 20 20 20 20 25 25 25 25 25 25 25 25 25 25 25 25 25 Average Carried 19 | 4 9 9 14 15 16 19 19 19 19 19 21 24 24 24 24 24 25 24 24 24 24 24 24 Final Capacity 25 | 8 10 10 15 15 20 20 20 20 20 20 25 25 25 25 25 25 25 25 25 25 25 25 25 Final Carried 25 | 8 10 10 15 15 20 20 20 20 20 20 25 25 25 25 24 25 25 25 25 25 25 25 25 Class Distribution -------------------- 38% | Tank 20% | Scavenger-Gunner 15% | Scavenger-Tank 11% | Gunner 11% | Mutant Dominant Class ---------------- Mutant | -10/Materials Mutant | -10/Mines Tank | -9/Materials Tank | -9/Mines Tank | -9/Exiles Gunner | -8/Mines Tank | -8/Materials Tank | -8/Garrison Commander-Tank | -8/Materials Scavenger-Gunner | -8/Garrison Scavenger-Tank | -7/Factory Tank | -7/Garrison Tank | -7/Factory Scavenger-Tank | -7/Garrison Scavenger-Gunner | -6/Factory Scavenger-Gunner | -6/Waste Scavenger-Gunner | -6/Factory Scavenger-Gunner | -6/Garrison Scavenger-Gunner | -6/Factory Scavenger-Tank | -6/Garrison Scavenger-Gunner | -5/Factory Scavenger-Gunner | -5/Waste Scavenger-Gunner | -5/Factory Resources | -11 -10 -10 -9 -9 -9 -8 -8 -8 -8 -8 -7 -7 -7 -7 -6 -6 -6 -6 -6 -6 -5 -5 -5 ----------- Run | Yrd Mat Min Mat Min Exi Min Mat Gar Mat Gar Fac Gar Fac Gar Fac Was Fac Gar Fac Gar Fac Was Fac Matter Collected 19943 | 282 509 377 1140 265 794 219 1925 1766 221 834 408 1362 1384 1960 109 545 . 794 1025 1821 369 167 1667 Remotely 736 | . . . . . . . . . . . . . . . . . . . 186 186 . . 364 Salvage Created 24926 | 142 620 129 2123 154 207 312 2178 2075 423 675 379 1739 1927 2186 104 1634 . 1250 1580 2666 741 . 1682 Parts 1127 | 8 34 16 130 7 1 22 126 99 25 28 18 73 67 104 2 30 . 47 81 98 30 . 81 Haulers Intercepted 18 | . 2 . 6 . . . 6 . 1 . . . 1 . 1 . . . 1 . . . . Recyclers Shooed 9 | . 4 . 1 . . . . . . . . . . . . . . . . . . . 4 Parts Field Recycled . | . . . . . . . . . . . . . . . . . . . . . . . . Retrieved Matter . | . . . . . . . . . . . . . . . . . . . . . . . . Parts Self-Destructed . | . . . . . . . . . . . . . . . . . . . . . . . . Prevented . | . . . . . . . . . . . . . . . . . . . . . . . . Kills | -11 -10 -10 -9 -9 -9 -8 -8 -8 -8 -8 -7 -7 -7 -7 -6 -6 -6 -6 -6 -6 -5 -5 -5 ------- Run | Yrd Mat Min Mat Min Exi Min Mat Gar Mat Gar Fac Gar Fac Gar Fac Was Fac Gar Fac Gar Fac Was Fac Combat Hostiles Destroyed 409 | . 16 8 36 9 4 11 36 44 6 20 12 28 24 34 . 5 . 17 38 24 12 . 25 Guns 327 | . 13 5 31 9 2 11 36 38 5 10 4 17 24 28 . 5 . 17 15 20 12 . 25 Cannons 24 | . . . 1 . . . . . 1 2 3 8 . 6 . . . . 3 . . . . AOE 58 | . 3 3 4 . 2 . . 6 . 8 5 3 . . . . . . 20 4 . . . Classes Destroyed 25 | 3 4 . 4 1 2 1 2 . 1 . 1 . 1 . . 1 . 2 2 . . . . Worker 15 | 1 1 . 2 . . . . . 1 . 2 . 3 . . . . . 4 . . . 1 Builder 5 | . . . 2 . . . . . . . . . . . . . . . . . 1 . 2 Tunneler 7 | 2 . . 1 . . . 2 . 1 . . . 1 . . . . . . . . . . Hauler 19 | . 2 . 6 . . . 6 . 1 . . . 2 . 1 . . . 1 . . . . Recycler 15 | 1 1 . 3 . . . 1 . . . . . 7 . . . . . . . 1 . 1 Mechanic 1 | . . . . . . . . . . . . . . . . . . . 1 . . . . Operator 3 | . . . 1 . . . 1 . 1 . . . . . . . . . . . . . . Turret 1 | . . . . . 1 . . . . . . . . . . . . . . . . . . Watcher 15 | . 3 . 4 . . . 5 . . . . 1 1 . . . . . . 1 . . . Swarmer 95 | . 9 6 7 4 . 7 7 11 . . 4 11 . 3 . . . 8 . 9 5 . 4 Saboteur 2 | . . . . . . . . . . . . . . . . . . . 2 . . . . Grunt 182 | . 7 2 20 1 . 3 17 18 1 16 7 16 14 18 . . . 3 21 7 1 . 10 Brawler 12 | . . . 1 . . . . 3 1 2 . . . . . . . . 1 1 1 . 2 Duelist 9 | . . . . . . . 1 5 . 1 . . . . . . . . 2 . . . . Protector 3 | . . . . . . . . . . . . . 1 . . . . . 1 1 . . . Sentry 44 | . . . 8 . . . 8 6 1 1 . . 3 5 . . . 5 1 2 1 . 3 Demolisher 3 | . . . . . . . . . 2 . . . . . . . . . . 1 . . . Specialist 2 | . . . . . . . . . . . . . . . . . . 1 1 . . . . Hunter 17 | . . . . . . 1 2 1 1 . . 1 2 4 . . . . 4 . . . 1 Programmer 25 | . . . . . . . . . . . 1 . 4 4 . . . . 4 3 4 . 5 Heavy 1 | . . . . . . . 1 . . . . . . . . . . . . . . . . Behemoth 1 | . . . . . . . . . . . . . . . . . . . 1 . . . . Compactor 5 | . . . . . . . . . . . . . . . . 5 . . . . . . . Zionite 1 | . . . . . 1 . . . . . . . . . . . . . . . . . . Assembled 7 | . . . . 4 3 . . . . . . . . . . . . . . . . . . Surgeon 1 | . . . . . . . . . . . . . . . . . . 1 . . . . . Wasp 1 | . . . . . . . . . . . . . . . . . . 1 . . . . . Thug 2 | . . . . . . . . . . . . . . . . 1 . 1 . . . . . Martyr 2 | . . . . . . . . . . . . . . . . 2 . . . . . . . Best Kill Streak 15 | 4 3 3 8 4 3 4 4 6 7 5 4 7 12 5 1 2 . 5 15 6 5 . 8 Combat Bots Only 14 | . 3 3 6 4 3 4 4 6 6 5 4 7 8 5 . 2 . 5 14 6 5 . 8 Max Kills in Single Turn 4 | 1 2 2 4 1 2 1 3 3 2 2 2 3 3 1 1 1 . 3 4 3 2 . 2 Gunslinging 2 | . 1 1 . . . . 2 1 . . . 1 1 . . . . 1 . 1 . . 1 Exploded 4 | . 2 2 4 . 2 . . 3 . 2 2 3 . . . . . . 3 3 . . . Melee . | . . . . . . . . . . . . . . . . . . . . . . . . Uniques/NPCs Destroyed 4 | . . . . . 4 . . . . . . . . . . . . . . . . . . 8R-AWN (-9/Exiles) EX-DEC (-9/Exiles) EX-HEX (-9/Exiles) EX-BIN (-9/Exiles) Combat | -11 -10 -10 -9 -9 -9 -8 -8 -8 -8 -8 -7 -7 -7 -7 -6 -6 -6 -6 -6 -6 -5 -5 -5 -------- Run | Yrd Mat Min Mat Min Exi Min Mat Gar Mat Gar Fac Gar Fac Gar Fac Was Fac Gar Fac Gar Fac Was Fac Hostile Shots Fired 1833 | . 67 26 86 44 8 52 113 155 18 125 31 92 161 269 . . . 59 205 95 73 . 154 Missed 524 | . 19 2 16 10 4 19 28 32 3 44 14 29 56 73 . . . 19 81 28 17 . 30 Hits 1309 | . 48 24 70 34 4 33 85 123 15 81 17 63 105 196 . . . 40 124 67 56 . 124 Melee 16 | . . . . . . . 1 7 . . . . 1 . . . . . . . 2 . 5 Projectile 1293 | . 48 24 70 34 4 33 84 116 15 81 17 63 104 196 . . . 40 124 67 54 . 119 AOE 1 | . . . . . . . . . 1 . . . . . . . . . . . . . . Critical Strikes 38 | . . . 1 . 2 2 4 3 . 3 . . 5 3 . . . 1 4 1 6 . 3 Actively Blocked 1 | . . . . . . . . 1 . . . . . . . . . . . . . . . Damage Taken 19238 | . 430 317 734 244 84 348 1578 1884 289 1260 226 737 1358 2341 . . . 664 1937 1130 1102 . 2575 Core 1911 | . 95 48 86 29 . 36 147 236 . 146 14 89 95 339 . . . 94 144 59 40 . 214 Absorbed by Shields 688 | . . . 107 101 18 . 120 . . 37 32 252 . 18 . . . 3 . . . . . Redirected to Shielding 31 | . . . . . . . . 31 . . . . . . . . . . . . . . . Ignored by Resistances 18 | . . . . . . . 6 . . 12 . . . . . . . . . . . . . Regen/Repaired (Parts) 1857 | . . . 79 . . . 199 . 5 . . . . . . 106 . 106 44 . . . 1318 Core Remaining (%) 49 | 100 . 42 . . . 62 . . . 3 . . . 23 . . . . . 65 . . . Volleys Fired 1136 | 4 78 14 94 25 36 21 95 85 16 65 33 57 65 84 4 60 . 43 67 64 31 3 92 Largest 4 | 2 2 2 3 3 3 3 4 4 4 4 4 4 4 4 4 2 . 4 4 4 4 1 4 Hottest 250 | 70 100 40 123 69 69 69 106 148 151 233 172 171 165 187 163 174 . 126 250 100 118 94 235 Shots Fired 3494 | 8 148 26 275 75 70 63 375 311 63 165 95 194 258 270 10 109 . 157 213 240 100 3 266 Gun 3217 | 8 140 24 267 75 67 63 375 307 47 119 44 150 244 248 8 102 . 156 181 235 99 1 257 Cannon 185 | . . . 7 . . . . . 16 31 43 42 14 17 . . . . 15 . . . . Launcher 54 | . 3 2 1 . 3 . . 4 . 15 5 2 . . . . . . 17 2 . . . Special 38 | . 5 . . . . . . . . . 3 . . 5 2 7 . 1 . 3 1 2 9 Kinetic 2948 | 4 125 24 234 75 67 63 375 273 47 44 70 161 253 261 6 . . 156 168 235 92 . 215 Thermal 446 | 4 7 . 40 . . . . 34 16 106 17 31 5 4 2 102 . . 28 . 7 1 42 Explosive 54 | . 3 2 1 . 3 . . 4 . 15 5 2 . . . . . . 17 2 . . . Electromagnetic 13 | . 13 . . . . . . . . . . . . . . . . . . . . . . Robot Hit Streak 39 | 4 16 11 17 9 17 11 39 11 5 14 4 10 14 17 7 20 . 12 9 38 13 8 12 Robot Miss Streak 12 | 1 5 2 4 4 4 4 3 5 6 4 7 8 5 7 2 4 . 12 5 6 3 . 10 Penetration Max 2 | . . . . . . . 2 1 1 1 . 1 1 1 . . . 1 2 . 1 . 2 Secondary Targets 63 | . 2 2 3 . . 2 5 11 . . . 4 5 4 . . . 4 2 3 7 . 9 Max Gunslinging Chain 2 | . 1 1 1 . . 1 2 1 . . . 1 1 1 . . . 2 1 1 1 . 1 Shots Hit Robots 2162 | 5 80 19 182 44 48 40 240 195 27 92 29 111 148 187 9 92 . 79 131 199 57 2 146 Core Hits 1064 | 5 34 10 79 12 17 18 97 91 14 39 25 66 92 95 3 27 . 42 106 92 28 . 72 Critical Kills 28 | . . . 1 . 1 . 2 7 4 . . . 3 2 . . . . 4 . 1 . 3 Critical Parts Destroyed 42 | . 2 . 1 . 1 . 5 9 3 . . . 1 4 . . . 2 3 1 . . 10 Critical Strikes 112 | . 2 . 6 . 11 . 7 19 7 3 2 2 5 11 . 5 . 4 7 7 1 . 13 Burn 12 | . . . 4 . . . . 3 . 2 . . . . . 3 . . . . . . . Destroy 81 | . 2 . 2 . 11 . 7 16 7 1 . . 4 7 . . . 2 7 1 1 . 13 Blast 5 | . . . . . . . . . . . 2 . 1 2 . . . . . . . . . Sever 14 | . . . . . . . . . . . . 2 . 2 . 2 . 2 . 6 . . . Melee Attacks 199 | . . . 1 . 4 . . 23 . 18 2 33 3 34 . 4 . 12 . 57 7 . 1 Impact 1 | . . . 1 . . . . . . . . . . . . . . . . . . . . Slashing 183 | . . . . . . . . 23 . 9 2 33 1 34 . 4 . 12 . 57 7 . 1 Piercing . | . . . . . . . . . . . . . . . . . . . . . . . . Sneak Attacks 19 | . . . . . 4 . . . . 9 . . 2 . . 4 . . . . . . . Combat Hostiles . | . . . . . . . . . . . . . . . . . . . . . . . . Follow-up Attacks . | . . . . . . . . . . . . . . . . . . . . . . . . Damage Inflicted 55056 | 63 1322 364 2929 643 634 575 3737 3760 542 2996 1194 4081 3710 4855 144 2460 . 2301 7183 6623 1291 . 3649 Guns 35871 | 61 1056 224 2518 643 543 575 3731 3320 392 1136 239 1255 3493 2979 144 2214 . 1679 2188 2541 1291 . 3649 Cannons 2640 | . . . 144 . . . . . 150 256 415 646 211 629 . . . . 189 . . . . Explosions 9138 | . 262 140 249 . 91 . . 440 . 1604 540 309 . . . . . . 4806 697 . . . Melee 7359 | . . . . . . . . . . . . 1871 . 1247 . 246 . 610 . 3385 . . . Ramming 48 | 2 4 . 18 . . . 6 . . . . . 6 . . . . 12 . . . . . Kinetic 32796 | 24 933 224 2280 643 543 575 3731 3033 392 467 593 1483 3650 3496 120 . . 1679 2010 2541 1291 . 3088 Thermal 6303 | 37 13 . 382 . . . . 287 150 925 61 418 54 112 24 2214 . . 1065 . . . 561 Explosive 8440 | . 262 140 249 . 91 . . 440 . 1604 540 309 . . . . . . 4108 697 . . . Electromagnetic 110 | . 110 . . . . . . . . . . . . . . . . . . . . . . Impact . | . . . . . . . . . . . . . . . . . . . . . . . . Slashing 7359 | . . . . . . . . . . . . 1871 . 1247 . 246 . 610 . 3385 . . . Piercing . | . . . . . . . . . . . . . . . . . . . . . . . . Highest Corruption 23 | . . . . . . . . . . 6 2 2 7 8 . . . 1 2 3 3 12 23 Average Corruption 5 | . . . . . . . . . . 5 1 2 6 7 . . . 1 1 2 2 10 16 Corruption Purged . | . . . . . . . . . . . . . . . . . . . . . . . . Corruption Blocked . | . . . . . . . . . . . . . . . . . . . . . . . . Effects 312 | . . . . . . . . . . 45 3 20 42 70 . . . 1 5 28 5 5 88 Message Errors 84 | . . . . . . . . . . 17 1 4 6 18 . . . 1 1 10 3 2 21 Matter Fused 65 | . . . . . . . . . . 11 1 7 15 11 . . . . 1 5 . 1 13 Heat Flow Errors 30 | . . . . . . . . . . 6 1 . 5 7 . . . . . 3 . . 8 Energy Discharges 33 | . . . . . . . . . . 2 . 2 4 13 . . . . 2 1 1 . 8 Parts Rejected 3 | . . . . . . . . . . 1 . . . 1 . . . . . . . . 1 Parts Fused 2 | . . . . . . . . . . 1 . . . 1 . . . . . . . . . Data Loss (minor) 31 | . . . . . . . . . . 5 . 4 6 3 . . . . 1 4 . 1 7 Data Loss (major) 9 | . . . . . . . . . . 1 . . . 6 . . . . . 1 . . 1 Misfires 9 | . . . . . . . . . . 1 . 1 1 3 . . . . . . . . 3 Alerts 12 | . . . . . . . . . . . . . 2 2 . . . . . 3 1 . 4 Misdirections 2 | . . . . . . . . . . . . . . . . . . . . . . 1 1 Weapon Failures 32 | . . . . . . . . . . . . 2 3 5 . . . . . 1 . . 21 Overload Shots . | . . . . . . . . . . . . . . . . . . . . . . . . Overflow Damage 655 | . 9 . 21 . . . . 10 . 87 46 16 . 148 . . . . 219 99 . . . Projectiles 139 | . . . 1 . . . . . . . . . . 102 . . . . 36 . . . . Explosions 423 | . 9 . 20 . . . . 10 . 87 46 16 . . . . . . 183 52 . . . Melee 93 | . . . . . . . . . . . . . . 46 . . . . . 47 . . . Knockbacks 11 | . . . . . . . 1 . . . 3 1 2 4 . . . . . . . . . Impact 1 | . . . . . . . 1 . . . . . . . . . . . . . . . . Kinetic 9 | . . . . . . . . . . . 3 1 2 3 . . . . . . . . . Secondary 1 | . . . . . . . . . . . . . . 1 . . . . . . . . . Self-Inflicted Damage 385 | . . 60 . . 44 . 3 51 . 86 . . . . . . . 6 135 . . . . Shots 10 | . . 2 . . 1 . . 1 . 3 . . . . . . . . 3 . . . . Rammed 7 | 1 2 . 1 . . . 1 . . . . . 1 . . . . 1 . . . . . Targets Rammed 9 | 2 2 . 2 . . . 1 . . . . . 1 . . . . 1 . . . . . Kicked . | . . . . . . . . . . . . . . . . . . . . . . . . Crushed 2 | 1 . . 1 . . . . . . . . . . . . . . . . . . . . Highest Temperature 502 | 9 32 32 343 17 35 143 355 338 129 502 345 314 433 468 30 252 . 59 151 416 102 2 439 Average Temperature 78 | 6 14 18 69 5 21 52 65 56 48 141 142 97 113 101 17 49 . 19 41 72 39 1 110 Received Heat Transfer 5838 | . 108 105 308 8 57 54 377 801 63 549 37 220 597 636 . . . 126 579 583 135 . 495 Effects 26 | . . . 4 . . . . . . 3 1 2 6 2 . . . . . 5 . . 3 Shutdowns 7 | . . . 2 . . . . . . 1 . . 1 2 . . . . . 1 . . . Energy Bleed 3 | . . . 1 . . . . . . 1 . . 1 . . . . . . . . . . Interference 8 | . . . . . . . . . . . . 2 3 . . . . . . . . . 3 Matter Decay 2 | . . . . . . . . . . 1 1 . . . . . . . . . . . . Short Circuit 2 | . . . 1 . . . . . . . . . 1 . . . . . . . . . . Damage (minor) 1 | . . . . . . . . . . . . . . . . . . . . 1 . . . Damage (major) 3 | . . . . . . . . . . . . . . . . . . . . 3 . . . Siege Activations . | . . . . . . . . . . . . . . . . . . . . . . . . Martial Activations . | . . . . . . . . . . . . . . . . . . . . . . . . Shielding Activations . | . . . . . . . . . . . . . . . . . . . . . . . . Robots Disrupted . | . . . . . . . . . . . . . . . . . . . . . . . . Combat Hostiles . | . . . . . . . . . . . . . . . . . . . . . . . . Robots Corrupted . | . . . . . . . . . . . . . . . . . . . . . . . . Combat Hostiles . | . . . . . . . . . . . . . . . . . . . . . . . . Parts Fried . | . . . . . . . . . . . . . . . . . . . . . . . . Impact Corruptions . | . . . . . . . . . . . . . . . . . . . . . . . . Robots Melted . | . . . . . . . . . . . . . . . . . . . . . . . . Combat Hostiles . | . . . . . . . . . . . . . . . . . . . . . . . . Parts Melted 7 | . . . 1 . . . . . . 3 . . . . . . . 1 . . . . 2 Heat Transferred 11062 | 111 37 . 1258 . . . . 925 222 1998 124 774 74 148 50 3529 . . 961 . . . 851 Parts Sabotaged 2 | . . . . . . . . . . . . . . . . . . . . . . . 2 Parts Stolen . | . . . . . . . . . . . . . . . . . . . . . . . . Parts Stripped . | . . . . . . . . . . . . . . . . . . . . . . . . Power Chain Reactions . | . . . . . . . . . . . . . . . . . . . . . . . . Alert | -11 -10 -10 -9 -9 -9 -8 -8 -8 -8 -8 -7 -7 -7 -7 -6 -6 -6 -6 -6 -6 -5 -5 -5 ------- Run | Yrd Mat Min Mat Min Exi Min Mat Gar Mat Gar Fac Gar Fac Gar Fac Was Fac Gar Fac Gar Fac Was Fac Maximum Alert Level 5 | . . . 2 . . . 1 5 3 4 3 5 4 5 4 1 . 5 5 5 4 2 2 Low Security (%) 36 | 100 100 100 43 100 . 100 78 6 . . . . . . . 74 100 7 . . . . 15 Level 1 14 | . . . 54 . . . 21 14 . . . . . . . 25 . 2 . . . . 54 Level 2 5 | . . . 1 . . . . 23 . 8 . 3 . . . . . 32 . . . 100 30 Level 3 15 | . . . . . . . . 17 100 41 100 27 54 10 . . . 15 52 . . . . Level 4 17 | . . . . . . . . 31 . 50 . 48 45 49 100 . . 16 36 12 100 . . Level 5 10 | . . . . . . . . 6 . . . 20 . 39 . . . 24 4 87 . . . High Security . | . . . . . . . . . . . . . . . . . . . 6 . . . . Max Security . | . . . . . . . . . . . . . . . . . . . . . . . . Peak Influence 2585 | 10 109 115 425 123 . 111 306 1665 939 1570 1011 1889 1307 2180 1223 387 . 1879 1993 2585 1531 530 511 Initial 1395 | . 3 30 . 123 . . 3 95 811 583 815 683 991 914 1144 387 . . 986 1395 1356 530 322 Average 679 | 1 45 23 222 32 . 34 136 872 815 1131 883 1259 1067 1566 1165 115 . 1019 1231 1988 1413 500 321 Influence Increases 16989 | 20 561 222 1127 198 . 309 1206 1650 494 1071 631 1206 862 1326 142 2 . 1959 1605 1240 429 . 729 Destroy 0b10 Robot/C 9200 | . 320 160 720 160 . 240 720 880 240 540 340 640 500 680 60 . . 760 840 640 260 . 500 Destroy 0b10 Robot/NC 595 | 20 35 . 95 . . . 75 10 30 . 10 40 70 30 5 . . 20 40 85 10 . 20 Destroy Leader 1462 | . 80 30 190 20 . 50 222 40 62 30 60 40 124 60 12 . . 60 172 60 50 . 100 Allied During Kill 1134 | . . 4 5 18 . 4 . . 69 20 35 34 7 . 26 . . 779 98 35 . . . Successful Hack 313 | . 16 . 65 . . . 37 . 27 14 48 14 5 7 24 . . 30 12 14 . . . Select Force Hacks 60 | . 60 . . . . . . . . . . . . . . . . . . . . . . Disable Machine 690 | . 15 15 15 . . 15 45 30 30 15 90 . 30 . 15 . . 15 315 . 30 . 15 Anti-Garrison Action 2250 | . . . . . . . . 600 . 300 . 300 . 500 . . . 250 . 300 . . . Destroy Structure 745 | . 20 13 22 . . . 17 75 36 137 48 48 6 19 . 2 . 30 113 31 64 . 64 Partial Spotted 15 | . . . . . . . . . . . . . . . . . . 15 . . . . . Lose Combat Pursuer 525 | . 15 . 15 . . . 90 15 . 15 . 90 120 30 . . . . 15 75 15 . 30 Influence Decreases 16534 | 15 487 301 811 496 18 298 1070 132 1262 414 1209 293 1444 453 1216 1108 . 80 1491 648 1499 1055 734 Entered New Map 9411 | . 2 49 . 193 18 . 8 52 854 314 739 293 898 393 1036 719 . . 893 598 1229 985 138 Time Decay 5558 | 15 485 252 621 303 . 298 667 . 278 . 410 . 486 . 180 329 . . 428 . 230 50 526 Lost Part 470 | . . . 20 . . . 40 80 10 60 . . 20 60 . . . . 50 50 20 . 60 Lost Ally 590 | . . . 20 . . . . . 120 40 60 . 40 . . 60 . 80 120 . 20 20 10 Purge Threat 505 | . . . 150 . . . 355 . . . . . . . . . . . . . . . . Squads Dispatched 61 | . 5 . 4 . . . 13 . 4 . 5 . 9 . 1 . . . 10 . 2 . 8 Investigation 18 | . 4 . 3 . . . 4 . 1 . 1 . . . . . . . 3 . . . 2 Extermination 11 | . . . . . . . . . . . 2 . 3 . . . . . 2 . 1 . 3 Reinforcement 12 | . 1 . 1 . . . 3 . . . 2 . 3 . . . . . 1 . . . 1 Assault 10 | . . . . . . . . . 1 . . . 3 . 1 . . . 2 . 1 . 2 Garrison 10 | . . . . . . . 6 . 2 . . . . . . . . . 2 . . . . Intercept . | . . . . . . . . . . . . . . . . . . . . . . . . Searches Triggered . | . . . . . . . . . . . . . . . . . . . . . . . . Construction Impeded 1 | . . . . . . . . . . . . . . . . . . . 1 . . . . Haulers Reinforced 2 | . . . . . . . . . . . 1 . 1 . . . . . . . . . . Active Scanning Responses . | . . . . . . . . . . . . . . . . . . . . . . . . Cargo Convoy Interrupts 3 | . . . . . . . . . . . 1 . . . . . . . 1 . . . 1 Stealth | -11 -10 -10 -9 -9 -9 -8 -8 -8 -8 -8 -7 -7 -7 -7 -6 -6 -6 -6 -6 -6 -5 -5 -5 --------- Run | Yrd Mat Min Mat Min Exi Min Mat Gar Mat Gar Fac Gar Fac Gar Fac Was Fac Gar Fac Gar Fac Was Fac Distress Signals 15 | . 1 . 3 1 . . 4 . 1 . 1 2 1 . . . . . . . 1 . . Communications Jammed . | . . . . . . . . . . . . . . . . . . . . . . . . Distress Signals . | . . . . . . . . . . . . . . . . . . . . . . . . Times Spotted 581 | . 26 7 46 14 8 12 50 47 18 28 27 39 42 41 4 5 . 37 47 27 12 6 38 Peak Tracking Total 15 | . 4 3 4 4 9 4 5 6 7 6 8 6 7 7 4 3 . 4 15 6 5 3 6 Tactical Retreats 33 | . 1 . 1 . 4 . 6 1 . 1 . 5 4 1 . . . . 1 4 1 1 2 Traps | -11 -10 -10 -9 -9 -9 -8 -8 -8 -8 -8 -7 -7 -7 -7 -6 -6 -6 -6 -6 -6 -5 -5 -5 ------- Run | Yrd Mat Min Mat Min Exi Min Mat Gar Mat Gar Fac Gar Fac Gar Fac Was Fac Gar Fac Gar Fac Was Fac Traps Triggered 57 | . 2 . 2 . . . 2 12 . 11 1 4 1 4 1 . . 10 2 . 3 . 2 Indirectly . | . . . . . . . . . . . . . . . . . . . . . . . . Trap Hack Attempts 2 | . . . . . . . . . . 2 . . . . . . . . . . . . . Triggered . | . . . . . . . . . . . . . . . . . . . . . . . . Disarmed . | . . . . . . . . . . . . . . . . . . . . . . . . Reprogrammed . | . . . . . . . . . . . . . . . . . . . . . . . . Reused . | . . . . . . . . . . . . . . . . . . . . . . . . Traps Extracted . | . . . . . . . . . . . . . . . . . . . . . . . . Installed . | . . . . . . . . . . . . . . . . . . . . . . . . Triggered . | . . . . . . . . . . . . . . . . . . . . . . . . Machines | -11 -10 -10 -9 -9 -9 -8 -8 -8 -8 -8 -7 -7 -7 -7 -6 -6 -6 -6 -6 -6 -5 -5 -5 ---------- Run | Yrd Mat Min Mat Min Exi Min Mat Gar Mat Gar Fac Gar Fac Gar Fac Was Fac Gar Fac Gar Fac Was Fac Machines Disabled 75 | . 2 1 1 . 6 1 3 9 2 3 6 3 2 5 1 . . 3 21 3 2 . 1 Max in Single Turn 7 | . 1 1 1 . 1 1 1 1 2 1 1 1 1 1 . . . 1 7 1 1 . 1 Garrison Access 2 | . . . . . . . . . . . 1 . . . . . . . . . . . 1 Garrison Relay 18 | . . . . . . . . 5 . 2 . 3 . 5 . . . 2 . 1 . . . Phase Generator 2 | . . . . . . . . 1 . . . . . . . . . . . 1 . . . Machines Repaired . | . . . . . . . . . . . . . . . . . . . . . . . . Machines Dismantled 5 | . . . . . . . . 3 . 1 . . . . . . . . . 1 . . . Machines Sabotaged . | . . . . . . . . . . . . . . . . . . . . . . . . Overloaded Fab Kills . | . . . . . . . . . . . . . . . . . . . . . . . . Hacking | -11 -10 -10 -9 -9 -9 -8 -8 -8 -8 -8 -7 -7 -7 -7 -6 -6 -6 -6 -6 -6 -5 -5 -5 --------- Run | Yrd Mat Min Mat Min Exi Min Mat Gar Mat Gar Fac Gar Fac Gar Fac Was Fac Gar Fac Gar Fac Was Fac Machines Accessed 96 | . 8 1 14 . 2 . 14 3 6 4 9 2 6 2 2 . 1 3 6 3 4 . 6 Terminals 60 | . 6 . 10 . . . 9 3 4 4 4 2 3 2 1 . . 3 1 3 3 . 2 Fabricators 8 | . . . . . . . . . . . 2 . 1 . 1 . . . 3 . 1 . . Repair Stations 7 | . . . 1 . . . 2 . 1 . . . 1 . . . . . . . . . 2 Recycling Units 4 | . 2 . 1 . . . . . . . . . . . . . . . . . . . 1 Scanalyzers 6 | . . . 2 . . . 2 . . . 1 . . . . . . . 1 . . . . Garrison Access 8 | . . . . . . . 1 . 1 . 2 . 1 . . . 1 . 1 . . . 1 Total Hacks 248 | . 23 1 52 . 2 . 58 4 16 8 19 3 8 4 3 . 1 7 16 6 7 . 10 Successful 109 | . 9 1 28 . 2 . 34 . 5 2 7 1 2 1 1 . 1 2 7 1 2 . 3 Failed 139 | . 14 . 24 . . . 24 4 11 6 12 2 6 3 2 . . 5 9 5 5 . 7 Catastrophic 31 | . 1 . 4 . . . 7 2 1 2 1 1 . . 1 . . 2 2 1 2 . 4 Database Lockouts . | . . . . . . . . . . . . . . . . . . . . . . . . Manual 80 | . 20 . 21 . 1 . 15 . 5 . 4 . 2 . . . . . 6 . 1 . 5 Terminals 155 | . 19 . 35 . . . 32 4 9 8 11 3 4 4 2 . . 7 2 6 5 . 4 Fabricators 15 | . . . . . . . . . . . 3 . 1 . 1 . . . 8 . 2 . . Repair Stations 23 | . . . 4 . . . 10 . 4 . . . 2 . . . . . . . . . 3 Recycling Units 8 | . 4 . 2 . . . . . . . . . . . . . . . . . . . 2 Scanalyzers 31 | . . . 11 . . . 15 . . . 1 . . . . . . . 4 . . . . Garrison Access 13 | . . . . . . . 1 . 3 . 4 . 1 . . . 1 . 2 . . . 1 Terminal Hacks 40 | . 2 1 9 . 2 . 13 . 1 2 3 1 1 1 1 . . 2 . 1 . . . Record 1 | . . . . . 1 . . . . . . . . . . . . . . . . . . Part Schematic 5 | . . . 2 . . . 3 . . . . . . . . . . . . . . . . Robot Schematic 1 | . 1 . . . . . . . . . . . . . . . . . . . . . . Robot Analysis 1 | . . . 1 . . . . . . . . . . . . . . . . . . . . Prototype ID Bank 9 | . 1 . 2 . . . 2 . . . 3 . . . 1 . . . . . . . . Open Door 2 | . . 1 . . . . . . . . . . . 1 . . . . . . . . . Emergency Access Points 2 | . . . . . . . . . . 1 . 1 . . . . . . . . . . . Terminal Index 3 | . . . 1 . . . 1 . . . . . 1 . . . . . . . . . . Alert Level 3 | . . . 1 . . . 2 . . . . . . . . . . . . . . . . Unreport Threat 4 | . . . 1 . . . 3 . . . . . . . . . . . . . . . . Locate Traps 4 | . . . 1 . . . 2 . 1 . . . . . . . . . . . . . . Garrison Registry 2 | . . . . . . . . . . 1 . . . . . . . . . 1 . . . Patrol Navigation 1 | . . . . . . . . . . . . . . . . . . 1 . . . . . Security Stations 1 | . . . . . . . . . . . . . . . . . . 1 . . . . . Proto ID Catalog 1 | . . . . . 1 . . . . . . . . . . . . . . . . . . Fabricator Hacks 5 | . . . . . . . . . . . 1 . . . . . . . 3 . 1 . . Network Status 3 | . . . . . . . . . . . 1 . . . . . . . 1 . 1 . . Load Schematic 2 | . . . . . . . . . . . . . . . . . . . 2 . . . . Repair Station Hacks 11 | . . . 3 . . . 6 . 2 . . . . . . . . . . . . . . Scan Component 6 | . . . 2 . . . 3 . 1 . . . . . . . . . . . . . . Repair 5 | . . . 1 . . . 3 . 1 . . . . . . . . . . . . . . Recycling Unit Hacks 1 | . . . . . . . . . . . . . . . . . . . . . . . 1 Retrieve Components 1 | . . . . . . . . . . . . . . . . . . . . . . . 1 Scanalyzer 24 | . . . 10 . . . 12 . . . . . . . . . . . 2 . . . . Insert Component 12 | . . . 5 . . . 6 . . . . . . . . . . . 1 . . . . Analyze 12 | . . . 5 . . . 6 . . . . . . . . . . . 1 . . . . Garrison Access Hacks 8 | . . . . . . . 1 . 1 . 2 . 1 . . . 1 . 1 . . . 1 Unlock Access 6 | . . . . . . . 1 . 1 . 1 . 1 . . . 1 . 1 . . . . Seal Access 2 | . . . . . . . . . . . 1 . . . . . . . . . . . 1 Unauthorized Hacks 19 | . 7 . 5 . . . 2 . 1 . 1 . . . . . . . 1 . 1 . 1 Terminals 12 | . 5 . 5 . . . 2 . . . . . . . . . . . . . . . . Operators 1 | . . . . . . . 1 . . . . . . . . . . . . . . . . Skim 11 | . 5 . 5 . . . 1 . . . . . . . . . . . . . . . . Fabricators 3 | . . . . . . . . . . . 1 . . . . . . . 1 . 1 . . Liberate 1 | . . . . . . . . . . . . . . . . . . . . . 1 . . Haulers 1 | . . . . . . . . . . . 1 . . . . . . . . . . . . Recompile 1 | . . . . . . . . . . . . . . . . . . . 1 . . . . Repair Stations 1 | . . . . . . . . . . . . . . . . . . . . . . . 1 Mechanics 1 | . . . . . . . . . . . . . . . . . . . . . . . 1 Recycling Units 2 | . 2 . . . . . . . . . . . . . . . . . . . . . . Tunnel 2 | . 2 . . . . . . . . . . . . . . . . . . . . . . Scanalyzers . | . . . . . . . . . . . . . . . . . . . . . . . . Garrison Access 1 | . . . . . . . . . 1 . . . . . . . . . . . . . . Reprogram 1 | . . . . . . . . . 1 . . . . . . . . . . . . . . Data Cores Recovered 1 | . . . . . . . . . 1 . . . . . . . . . . . . . . Used . | . . . . . . . . . . . . . . . . . . . . . . . . Hacking Detections 81 | . 7 . 13 . . . 13 3 5 3 8 2 5 1 2 . 1 3 6 3 3 . 3 Full Trace Events 15 | . . . 1 . . . 3 . . 2 . 1 . 1 . . . 3 2 . . . 2 Feedback Events 3 | . . . . . . . . . . 1 . . . . . . . 1 . . . . 1 Corruption 3 | . . . . . . . . . . 1 . . . . . . . 1 . . . . 1 Feedback Blocked . | . . . . . . . . . . . . . . . . . . . . . . . . Robot Schematics Acquired 1 | . 1 . . . . . . . . . . . . . . . . . . . . . . Robots Built . | . . . . . . . . . . . . . . . . . . . . . . . . Authchips . | . . . . . . . . . . . . . . . . . . . . . . . . Time . | . . . . . . . . . . . . . . . . . . . . . . . . Total Robot Build Rating . | . . . . . . . . . . . . . . . . . . . . . . . . Part Schematics Acquired 16 | . . . 7 . . . 9 . . . . . . . . . . . . . . . . Parts Built . | . . . . . . . . . . . . . . . . . . . . . . . . Authchips . | . . . . . . . . . . . . . . . . . . . . . . . . Time . | . . . . . . . . . . . . . . . . . . . . . . . . Total Part Build Rating . | . . . . . . . . . . . . . . . . . . . . . . . . Parts Repaired 5 | . . . 1 . . . 3 . 1 . . . . . . . . . . . . . . Time 407 | . . . 44 . . . 268 . 95 . . . . . . . . . . . . . . Parts Recycled . | . . . . . . . . . . . . . . . . . . . . . . . . Recycled Matter . | . . . . . . . . . . . . . . . . . . . . . . . . Retrieved Matter . | . . . . . . . . . . . . . . . . . . . . . . . . Retrieved Components 6 | . . . . . . . . . . . . . . . . . . . . . . . 6 Parts Scanalyzed 12 | . . . 5 . . . 6 . . . . . . . . . . . 1 . . . . Part Schematics Acquired 11 | . . . 5 . . . 6 . . . . . . . . . . . . . . . . Parts Damaged 4 | . . . . . . . 3 . . . . . . . . . . . 1 . . . . Bothacking | -11 -10 -10 -9 -9 -9 -8 -8 -8 -8 -8 -7 -7 -7 -7 -6 -6 -6 -6 -6 -6 -5 -5 -5 ------------ Run | Yrd Mat Min Mat Min Exi Min Mat Gar Mat Gar Fac Gar Fac Gar Fac Was Fac Gar Fac Gar Fac Was Fac Used RIF Installer 6 | . . . . . . . . 1 . 1 . 1 . 1 . . . 1 . 1 . . . Command Fork 1 | . . . . . . . . . . 1 . . . . . . . . . . . . . Watcher Feeds 1 | . . . . . . . . . . . . 1 . . . . . . . . . . . Patrol Navigation 1 | . . . . . . . . . . . . . . . . . . 1 . . . . . Alert ID Control 1 | . . . . . . . . . . . . . . 1 . . . . . . . . . Autooverride 1 | . . . . . . . . . . . . . . . . . . . . 1 . . . Robots Hacked 24 | . . . . . 4 . . . . . 1 . 1 4 1 4 . 1 . . 1 2 5 Non-combat 13 | . . . . . 3 . . . . . 1 . 1 . 1 . . 1 . . 1 . 5 Combat 11 | . . . . . 1 . . . . . . . . 4 . 4 . . . . . 2 . Robot Hacks Applied 25 | . . . . . 4 . . . . . 1 . 1 4 1 4 . 1 . . 1 2 6 parse_system 6 | . . . . . 4 . . . . . . . . 1 . . . 1 . . . . . find_chute 2 | . . . . . . . . . . . 1 . . . . . . . . . 1 . . drop_inventory 3 | . . . . . . . . . . . . . . . 1 . . . . . . . 2 ignore_parts 1 | . . . . . . . . . . . . . . . . . . . . . . . 1 ignore_targets 6 | . . . . . . . . . . . . . . . . 4 . . . . . 2 . amplify_resonance 3 | . . . . . . . . . . . . . . 3 . . . . . . . . . streamctrl_low 1 | . . . . . . . . . . . . . . . . . . . . . . . 1 formatsys_low 3 | . . . . . . . . . . . . . 1 . . . . . . . . . 2 Relay Couplers Released 82 | . . . . . . . . 23 . 9 . 13 . 21 . . . 13 . 3 . . . Machine Destruction 78 | . . . . . . . . 23 . 9 . 13 . 21 . . . 9 . 3 . . . Programmers 4 | . . . . . . . . . . . . . . . . . . 4 . . . . . Attached 7 | . . . . . . . . . . . 1 . 1 2 1 . . 1 . . . 1 . Fabnet Peak Effective % . | . . . . . . . . . . . . . . . . . . . . . . . . Robots Rewired 13 | . . . . . . . . 5 . 3 . . . 4 . . . . . 1 . . . Allies Hacked 5 | . . . . . . . . . . . . . 1 . . . . . 2 . . . 2 Hacks Repelled . | . . . . . . . . . . . . . . . . . . . . . . . . Allies | -11 -10 -10 -9 -9 -9 -8 -8 -8 -8 -8 -7 -7 -7 -7 -6 -6 -6 -6 -6 -6 -5 -5 -5 -------- Run | Yrd Mat Min Mat Min Exi Min Mat Gar Mat Gar Fac Gar Fac Gar Fac Was Fac Gar Fac Gar Fac Was Fac Total Allies 50 | . . 2 . 4 . . . 5 2 4 . 2 2 4 . 18 . 2 . 1 . 1 3 Largest Group 18 | . . 2 1 4 3 . . 4 5 4 3 2 2 4 4 18 16 15 9 1 1 1 1 Highest-Rated Group 638 | . . 42 11 71 40 . . 88 112 73 57 124 124 96 96 638 538 509 370 116 116 31 23 Highest-Rated Ally 116 | . . 31 11 31 16 . . 24 24 25 25 62 62 31 31 50 46 46 46 116 116 31 23 Total Orders 20 | . . . . . 7 1 . . . . . . 4 . 4 2 . . . . . . 2 STAY 5 | . . . . . 1 . . . . . . . . . 2 2 . . . . . . . ROAM 1 | . . . . . . . . . . . . . 1 . . . . . . . . . . FOLLOW 3 | . . . . . . . . . . . . . 1 . 2 . . . . . . . . AID 2 | . . . . . . . . . . . . . . . . . . . . . . . 2 DROP 1 | . . . . . . . . . . . . . 1 . . . . . . . . . . PICKUP 1 | . . . . . . . . . . . . . 1 . . . . . . . . . . RETURN 7 | . . . . . 6 1 . . . . . . . . . . . . . . . . . Ally Attacks 536 | . . 5 . 36 105 24 . . 29 15 25 9 8 . 13 34 . 160 33 22 2 16 . Total Damage 9949 | . . 107 . 201 728 120 . . 831 559 279 253 353 . 263 647 . 2887 1261 1101 109 250 . Kills 86 | . . . . 6 10 1 . . 8 7 5 4 3 . 3 1 . 21 7 9 1 . . Allies Corrupted 1 | . . . . . . . . . . . . . . . . . . . 1 . . . . Allies Melted 1 | . . . . . . . . . . . . . . . . . . . 1 . . . . Turrets Deployed 1 | . . . . . . . . . . 1 . . . . . . . . . . . . . Intel | -11 -10 -10 -9 -9 -9 -8 -8 -8 -8 -8 -7 -7 -7 -7 -6 -6 -6 -6 -6 -6 -5 -5 -5 ------- Run | Yrd Mat Min Mat Min Exi Min Mat Gar Mat Gar Fac Gar Fac Gar Fac Was Fac Gar Fac Gar Fac Was Fac Active Infowar (turns) 13088 | 19 489 . . . . . . . . . 310 1424 1279 2082 369 1037 91 1120 1110 1832 484 112 1330 Seismic 509 | 19 489 . . . . . . . . . . . . . . . . . 1 . . . . T.N.C. 12580 | . . . . . . . . . . . 310 1424 1279 2082 369 1037 91 1120 1110 1832 484 112 1330 Robot Analysis Total 1 | . . . 1 . . . . . . . . . . . . . . . . . . . . Derelict Logs Recovered 3 | . . 1 . 2 . . . . . . . . . . . . . . . . . . . Drone Launches 33 | . . . . . 23 10 . . . . . . . . . . . . . . . . . Drone Recoveries 33 | . . . . . 23 10 . . . . . . . . . . . . . . . . . Exploration | -11 -10 -10 -9 -9 -9 -8 -8 -8 -8 -8 -7 -7 -7 -7 -6 -6 -6 -6 -6 -6 -5 -5 -5 ------------- Run | Yrd Mat Min Mat Min Exi Min Mat Gar Mat Gar Fac Gar Fac Gar Fac Was Fac Gar Fac Gar Fac Was Fac Turns Passed 34332 | 107 1833 1167 4198 1262 3080 991 3733 2235 613 1731 980 1424 1279 2082 369 1037 91 1120 1110 1832 484 112 1462 Spaces Moved 18438 | 48 844 682 2260 651 1786 509 1638 1202 348 1027 641 756 682 917 124 618 61 752 697 919 343 84 849 Core 2 | 2 . . . . . . . . . . . . . . . . . . . . . . . Treads 9378 | 46 844 682 2260 651 1702 . 650 73 . . . 388 405 613 28 . . . 198 838 . . . Legs 109 | . . . . . . . . . . . . . . 109 . . . . . . . . . Wheels 8949 | . . . . . 84 509 988 1129 348 1027 641 368 277 195 96 618 61 752 499 81 343 84 849 Hover . | . . . . . . . . . . . . . . . . . . . . . . . . Flight . | . . . . . . . . . . . . . . . . . . . . . . . . Fastest Speed 50 | 50 160 160 160 160 160 180 120 130 130 110 108 123 115 115 115 115 130 111 111 105 105 120 103 Average Speed 148 | 155 160 160 160 160 160 180 184 137 130 126 124 142 142 168 125 123 130 113 126 158 106 120 114 Slowest Speed 820 | 160 160 160 160 160 180 180 250 250 130 180 135 240 160 820 160 130 130 130 240 240 120 120 123 Overloaded Moves . | . . . . . . . . . . . . . . . . . . . . . . . . Propulsion Burnouts . | . . . . . . . . . . . . . . . . . . . . . . . . Robots Hopped . | . . . . . . . . . . . . . . . . . . . . . . . . Potential Cave-ins 2 | . . . . . . . . . . . . . . . . . . . . . 2 . . Cave-ins Triggered . | . . . . . . . . . . . . . . . . . . . . . . . . Exploration Rate (%) 61 | 4 97 98 98 96 92 98 98 93 33 84 18 82 15 81 4 97 3 76 28 77 17 77 21 Regions Visited 23 Branch Regions 4 Pre-discovered Areas 9 | . 2 . 6 . 1 . . . . . . . . . . . . . . . . . . Known Exits Taken 10 | . 1 1 1 . . 1 1 . 1 . 1 . 1 . . . 1 . 1 . . . . Unknown Exits Taken 3 | 1 . . . 1 1 . . . . . . . . . . . . . . . . . . Scrap Searched 7 | . . 3 . 1 . 3 . . . . . . . . . . . . . . . . . Spaces Dug 49 | . 4 7 1 . . . . 4 . . 2 13 1 . . . . . . . 8 . 9 Terrain Destroyed 560 | . 18 13 13 . 42 . 7 52 36 81 48 14 3 21 1 2 . 8 121 8 22 . 50 Melee 12 | . . . 1 . . . . . . . 2 . 1 . . . . . . . 7 . 1 Projectile 157 | . 4 . . . 15 . 7 7 12 2 3 1 2 19 1 2 . 8 11 . 15 . 48 AOE 382 | . 14 13 12 . 21 . . 45 24 79 43 13 . . . . . . 110 8 . . . Terrain Rammed . | . . . . . . . . . . . . . . . . . . . . . . . . Walls Destroyed . | . . . . . . . . . . . . . . . . . . . . . . . . Machines Disabled . | . . . . . . . . . . . . . . . . . . . . . . . . Actions | -11 -10 -10 -9 -9 -9 -8 -8 -8 -8 -8 -7 -7 -7 -7 -6 -6 -6 -6 -6 -6 -5 -5 -5 --------- Run | Yrd Mat Min Mat Min Exi Min Mat Gar Mat Gar Fac Gar Fac Gar Fac Was Fac Gar Fac Gar Fac Was Fac Total 22915 | 68 1168 731 2655 816 1938 537 2174 1537 471 1313 750 940 841 1228 330 778 71 934 832 1142 401 92 1168 Wait 1792 | . 209 25 176 136 56 4 368 42 95 43 36 20 48 46 194 60 5 23 12 20 . 1 173 Move 18421 | 48 843 681 2259 650 1785 508 1637 1201 347 1026 641 755 682 916 124 617 61 751 696 918 343 83 849 Hop . | . . . . . . . . . . . . . . . . . . . . . . . . Pick Up 208 | 8 10 3 33 . 20 1 24 9 5 7 8 9 10 17 . 6 . 5 12 12 4 1 4 Fast Attach 75 | 7 1 . 4 . . . 1 2 1 6 2 6 1 9 2 2 . 3 5 13 3 . 7 Attach 55 | . . . 3 . 3 1 9 6 . 5 1 1 4 6 1 . . 3 5 4 2 . 1 Detach 6 | . . . . . . . . . . 2 . . . 1 . . . . 1 2 . . . Swap 343 | . 14 5 38 3 13 1 18 31 3 28 19 15 16 30 3 19 4 12 16 20 9 3 23 Drop 254 | . 11 3 45 2 21 1 21 5 4 9 8 20 11 24 2 10 1 11 10 23 2 1 9 Fire 1136 | 4 78 14 94 25 36 21 95 85 16 65 33 57 65 84 4 60 . 43 67 64 31 3 92 Melee 199 | . . . 1 . 4 . . 23 . 18 2 33 3 34 . 4 . 12 . 57 7 . 1 Ram 3 | . . . . . . . 1 . . . . . . . . . . 1 . . . . 1 Kick . | . . . . . . . . . . . . . . . . . . . . . . . . Crush 6 | 1 2 . 2 . . . . . . . . . 1 . . . . . . . . . . Escape Stasis 276 | . . . . . . . . 64 . 86 . 24 . 16 . . . 70 8 . . . 8 Rewire 102 | . . . . . . . . 49 . 8 . . . 45 . . . . . . . . . Trap 2 | . . . . . . . . . . 2 . . . . . . . . . . . . . Miscellaneous 37 | . . . . . . . . 20 . 8 . . . . . . . . . 9 . . . Route ------- -11/Scrapyard -10/Materials (discovered 6 exits: *Mat x3 / *Min x2 / Sub) -10/Mines (discovered 3 exits: *Mat x2 / *Sub) -9/Materials (discovered 5 exits: *Mat x3 / *Min x2) -9/Mines (discovered 4 exits: *Mat x2 / *Exi / [*Zio]) -9/Exiles -8/Mines (discovered 2 exits: *Mat x2) -8/Materials (discovered 4 exits: *Fac x3 / Gar) -8/Garrison (discovered 4 exits: *Mat x4) -8/Materials -8/Garrison (discovered 3 exits: *Fac x3) -7/Factory -7/Garrison (discovered 3 exits: *Fac x3) -7/Factory (discovered 2 exits: [*Low] / Gar) -7/Garrison (discovered 3 exits: *Fac x3) -6/Factory -6/Waste -6/Factory -6/Garrison (discovered 4 exits: *Fac x4) -6/Factory -6/Garrison (discovered 3 exits: *Fac x3) -5/Factory -5/Waste -5/Factory (discovered 1 exit: [*Fac]) History --------- Turn | Location | Event 2 | -11/Scrapyard | Met Revision 17 12 | -11/Scrapyard | Discovered new exit (range 16) 108 | -11/Scrapyard | Entered Materials 284 | -10/Materials | Discovered new exit (range 16) 309 | -10/Materials | Build established: Mutant 479 | -10/Materials | Discovered new exit (range 10) 665 | -10/Materials | Discovered new exit (range 10) 1098 | -10/Materials | Discovered new exit (range 3) 1474 | -10/Materials | Discovered new exit (range 15) 1701 | -10/Materials | Identified exit to Materials 1701 | -10/Materials | Identified exit to Subcaves 1701 | -10/Materials | Identified exit to Mines 1729 | -10/Materials | Learned Storage stockpile data 1747 | -10/Materials | Learned location of 2 exits from Materials 1754 | -10/Materials | Loaded intel: 4 trap records 1756 | -10/Materials | Learned Storage emergency access door positions 1757 | -10/Materials | Learned location of 2 exits from Subcaves 1763 | -10/Materials | Learned 2 Materials zone layouts 1777 | -10/Materials | Loaded intel: 2 recycling unit locations 1941 | -10/Materials | Entered Mines 2044 | -10/Mines | Found the Drone Emporium 2050 | -10/Mines | Found Prototype Device 2050 | -10/Mines | Identified Thief Drone Bay 2118 | -10/Mines | Learned Materials stockpile data 2301 | -10/Mines | Discovered exit to Subcaves (range 8) 2603 | -10/Mines | Discovered exit to Materials (range 10) 2700 | -10/Mines | Core integrity fell below 50% 2800 | -10/Mines | Discovered exit to Materials (range 10) 3108 | -10/Mines | Entered Materials 3108 | -9/Materials | Accompanied by 1 ally 3108 | -9/Materials | Evolved 2 slots: Propulsion x1, Weapon x1 3109 | -9/Materials | Identified exit to Materials 3109 | -9/Materials | Identified exit to Mines 3416 | -9/Materials | Build established: Tank 3859 | -9/Materials | Discovered exit to Materials (range 16) 4036 | -9/Materials | Build established: Scavenger-Tank 4135 | -9/Materials | Learned location of Recycling (-7) 4147 | -9/Materials | Learned location of Zion (-7) 4148 | -9/Materials | Learned location of Storage (-7) 4177 | -9/Materials | Learned 2 Storage zone layouts 4359 | -9/Materials | Repaired Broken Hvy. Assault Rifle 4458 | -9/Materials | Build established: Tank 4910 | -9/Materials | Build established: Scavenger-Tank 4970 | -9/Materials | Discovered exit to Mines (range 16) 5215 | -9/Materials | Build established: Tank 5710 | -9/Materials | Discovered exit to Materials (range 7) 7306 | -9/Materials | Entered Mines 7307 | -9/Mines | A Derelict revealed a hidden shortcut to a safe place 7307 | -9/Mines | Assembled infested the area 7488 | -9/Mines | Learned Materials garrison access intel 7554 | -9/Mines | Discovered exit to Materials (range 8) 7738 | -9/Mines | Assisted by bots powering up and referring to "LRC-V3" 7818 | -9/Mines | Found DCF Scrap (15 items) 7876 | -9/Mines | Deemed a non-threat by the Exiles lab entrance 7876 | -9/Mines | Discovered new exit (range 5) 8076 | -9/Mines | Learned location of 1 exit from Materials 8132 | -9/Mines | A weapon hastily lodged in a ceiling crevice suddenly fell to the ground 8241 | -9/Mines | Received a Mining Laser from a helpful Derelict 8295 | -9/Mines | Received a Rocket Launcher from a helpful Derelict 8363 | -9/Mines | Discovered exit to Materials (range 5) 8568 | -9/Mines | Entered Exiles 8568 | -9/Exiles | Accompanied by 3 allies 8612 | -9/Exiles | Met 8R-AWN 8634 | -9/Exiles | Met EX-HEX 8709 | -9/Exiles | Met EX-DEC 8810 | -9/Exiles | Discovered new exit (range 10) 8956 | -9/Exiles | Visited The Gauntlet 9129 | -9/Exiles | Build established: Mutant 9264 | -9/Exiles | Met EX-BIN 9582 | -9/Exiles | Aligned with FarCom system 9584 | -9/Exiles | Given EX-Vault access code 9622 | -9/Exiles | Opened EX-Vault 9633 | -9/Exiles | Found Cloak of Protection 9637 | -9/Exiles | Found Modified TNC 9643 | -9/Exiles | Found Field Lobotomy Kit 9676 | -9/Exiles | Warned to stay clear of 0b10 Research branches 9724 | -9/Exiles | Build established: Tank 10266 | -9/Exiles | Attacked by the Exiles 10391 | -9/Exiles | Found 8R-AWN's Boregun 10437 | -9/Exiles | Found 8R-AWN's Boregun 10485 | -9/Exiles | Destroyed 8R-AWN 10645 | -9/Exiles | Build established: Gunner 10778 | -9/Exiles | Allies destroyed EX-DEC 10804 | -9/Exiles | Allies destroyed EX-HEX 10809 | -9/Exiles | Allies destroyed EX-BIN 11278 | -9/Exiles | Found AS-neutralizer No. 17b 11500 | -9/Exiles | Found Deploy-a-Sentry 11648 | -9/Exiles | Stole four prototypes: Modified TNC, Cloak of Protection, Field Lobotomy Kit, Deploy-a-Sentry 11648 | -9/Exiles | Entered Mines 12320 | -8/Mines | Discovered exit to Materials (range 6) 12482 | -8/Mines | Discovered exit to Materials (range 13) 12639 | -8/Mines | Entered Materials 12639 | -8/Materials | Evolved 2 slots: Utility x1, Weapon x1 12640 | -8/Materials | Identified exit to Factory 12641 | -8/Materials | Loaded intel: 1 garrison access location 12804 | -8/Materials | Build established: Tank 12981 | -8/Materials | Garrison activated, responded to threat 13283 | -8/Materials | Lost 4 parts (1n2u1w) 13504 | -8/Materials | Build established: Gunner 13969 | -8/Materials | Build established: Scavenger-Gunner 14088 | -8/Materials | Discovered exit to Factory (range 7) 14492 | -8/Materials | Build established: Scavenger-Tank 14900 | -8/Materials | Garrison activated, responded to threat 15472 | -8/Materials | Build established: Tank 15640 | -8/Materials | Repaired Broken Exp. Heat Sink 15828 | -8/Materials | Repaired Broken Cold Fusion Reactor 15885 | -8/Materials | Repaired Rnf. Fission Core? 16095 | -8/Materials | Discovered exit to Factory (range 16) 16169 | -8/Materials | Identified exit to Garrison 16372 | -8/Materials | Entered Garrison 16506 | -8/Garrison | Triggered checkpoint 16522 | -8/Garrison | Garrison Relay disabled 16710 | -8/Garrison | Triggered checkpoint 16766 | -8/Garrison | Discovered new exit (range 12) 16818 | -8/Garrison | Triggered checkpoint 16882 | -8/Garrison | Garrison Relay disabled 17131 | -8/Garrison | Garrison Relay disabled 17216 | -8/Garrison | Spotted B-75 Beast 17252 | -8/Garrison | Triggered checkpoint 17303 | -8/Garrison | Lost 3 parts (1n2w) 17346 | -8/Garrison | Discovered new exit (range 15) 17478 | -8/Garrison | Triggered checkpoint 17481 | -8/Garrison | Core integrity fell below 50% 17691 | -8/Garrison | Spotted B-75 Beast 17703 | -8/Garrison | Triggered checkpoint 17749 | -8/Garrison | Triggered checkpoint 17812 | -8/Garrison | Phase Generator disabled 17837 | -8/Garrison | Garrison Relay disabled 17928 | -8/Garrison | Discovered new exit (range 11) 18000 | -8/Garrison | Triggered checkpoint 18000 | -8/Garrison | Garrison Relay disabled 18039 | -8/Garrison | Installed Relay Interface Framework 18068 | -8/Garrison | Triggered checkpoint 18100 | -8/Garrison | Discovered new exit (range 5) 18607 | -8/Garrison | Entered Materials 18607 | -8/Materials | Accompanied by 5 allies 18844 | -8/Materials | Repaired Broken Adv. Weapon Cycler 18909 | -8/Materials | Build established: Commander-Tank 19007 | -8/Materials | First assault squad dispatched 19098 | -8/Materials | Garrison activated, responded to threat 19168 | -8/Materials | Lost 5 allies 19173 | -8/Materials | Identified exit to Garrison 19220 | -8/Materials | Entered Garrison 19270 | -8/Garrison | Triggered checkpoint 19320 | -8/Garrison | Garrison Relay disabled 19399 | -8/Garrison | Build established: Tank 19510 | -8/Garrison | Triggered checkpoint 19624 | -8/Garrison | DAS Turret deployed 19626 | -8/Garrison | Core integrity fell below 20% 19649 | -8/Garrison | Lost 3 parts (1u2w) 19670 | -8/Garrison | Triggered checkpoint 19896 | -8/Garrison | Discovered exit to Factory (range 13) 20070 | -8/Garrison | Triggered checkpoint 20103 | -8/Garrison | Discovered exit to Factory (range 12) 20115 | -8/Garrison | Build established: Scavenger-Gunner 20263 | -8/Garrison | Expanded RIF knowledge: Command Fork 20464 | -8/Garrison | Build established: Gunner 20574 | -8/Garrison | Triggered checkpoint 20586 | -8/Garrison | Discovered exit to Factory (range 12) 20609 | -8/Garrison | Triggered checkpoint 20703 | -8/Garrison | Discovered exit to Factory (range 100) 20703 | -8/Garrison | Discovered exit to Factory (range 56) 20703 | -8/Garrison | Discovered exit to Factory (range 12) 20820 | -8/Garrison | Rescued a captive Derelict 20929 | -8/Garrison | Build established: Scavenger-Gunner 20951 | -8/Garrison | Entered Factory 20951 | -7/Factory | Accompanied by 3 allies 20951 | -7/Factory | Evolved 2 slots: Propulsion x1, Utility x1 21342 | -7/Factory | Build established: Scavenger-Tank 21520 | -7/Factory | Noticed a derelict Sapper rigging charges 21906 | -7/Factory | Identified exit to Garrison 21929 | -7/Factory | Cargo convoy interrupted 21931 | -7/Factory | Entered Garrison 21965 | -7/Garrison | Triggered checkpoint 22021 | -7/Garrison | Garrison Relay disabled 22056 | -7/Garrison | Triggered checkpoint 22113 | -7/Garrison | Destroyed 7 combat bots 22239 | -7/Garrison | Build established: Tank 22327 | -7/Garrison | Triggered checkpoint 22374 | -7/Garrison | Garrison Relay disabled 22389 | -7/Garrison | Triggered checkpoint 22485 | -7/Garrison | Discovered new exit (range 12) 22763 | -7/Garrison | Triggered checkpoint 22841 | -7/Garrison | Expanded RIF knowledge: Watcher Feeds 22853 | -7/Garrison | Discovered new exit (range 14) 22909 | -7/Garrison | Triggered checkpoint 23053 | -7/Garrison | Found embedded Infiltrators 23316 | -7/Garrison | Garrison Relay disabled 23344 | -7/Garrison | Discovered new exit (range 8) 23355 | -7/Garrison | Entered Factory 23355 | -7/Factory | Accompanied by 2 allies 23683 | -7/Factory | Discovered new exit (range 8) 23755 | -7/Factory | First assault squad dispatched 24050 | -7/Factory | Destroyed 8 combat bots 24475 | -7/Factory | Build established: Gunner 24634 | -7/Factory | Identified exit to Garrison 24634 | -7/Factory | Entered Garrison 24648 | -7/Garrison | Triggered checkpoint 24697 | -7/Garrison | Triggered checkpoint 24816 | -7/Garrison | Triggered checkpoint 24928 | -7/Garrison | Core integrity fell below 50% 25279 | -7/Garrison | Discovered new exit (range 12) 25299 | -7/Garrison | Expanded RIF knowledge: Alert ID Control 25377 | -7/Garrison | Triggered checkpoint 25420 | -7/Garrison | Build established: Scavenger-Gunner 25568 | -7/Garrison | Garrison Relay disabled 25896 | -7/Garrison | Build established: Scavenger-Tank 25906 | -7/Garrison | Garrison Relay disabled 25988 | -7/Garrison | Discovered new exit (range 9) 26156 | -7/Garrison | Garrison Relay disabled 26258 | -7/Garrison | Triggered checkpoint 26427 | -7/Garrison | Discovered new exit (range 11) 26478 | -7/Garrison | Triggered checkpoint 26487 | -7/Garrison | Garrison Relay disabled 26716 | -7/Garrison | Entered Factory 26716 | -6/Factory | Accompanied by 4 allies 26716 | -6/Factory | Evolved 2 slots: Propulsion x1, Utility x1 27023 | -6/Factory | Build established: Scavenger-Gunner 27066 | -6/Factory | First assault squad dispatched 27085 | -6/Factory | Sucked down chute 27085 | -6/Factory | Entered Waste 27103 | -6/Waste | Spotted C-40 Crusher 27148 | -6/Waste | Spotted C-40 Crusher 27149 | -6/Waste | Spotted C-40 Crusher 27153 | -6/Waste | Spotted C-40 Crusher 27170 | -6/Waste | 4 allies followed down the chute 27179 | -6/Waste | Spotted C-40 Crusher 27304 | -6/Waste | Discovered new exit (range 10) 27485 | -6/Waste | Destroyed C-40 Crusher 27489 | -6/Waste | Spotted C-40 Crusher 27542 | -6/Waste | Destroyed C-40 Crusher 27577 | -6/Waste | Destroyed C-40 Crusher 27601 | -6/Waste | Destroyed C-40 Crusher 27615 | -6/Waste | Destroyed C-40 Crusher 27636 | -6/Waste | Warlord forces began an assault 27761 | -6/Waste | Allies destroyed C-40 Crusher 28122 | -6/Waste | Entered Factory 28122 | -6/Factory | Accompanied by 16 allies 28208 | -6/Factory | Identified exit to Garrison 28213 | -6/Factory | Entered Garrison 28213 | -6/Garrison | Accompanied by 15 allies 28269 | -6/Garrison | Expanded RIF knowledge: Patrol Navigation 28293 | -6/Garrison | Triggered checkpoint 28305 | -6/Garrison | Triggered checkpoint 28338 | -6/Garrison | Lost 3 allies 28339 | -6/Garrison | Triggered checkpoint 28438 | -6/Garrison | Discovered new exit (range 8) 28503 | -6/Garrison | Triggered checkpoint 28575 | -6/Garrison | Triggered checkpoint 28662 | -6/Garrison | Discovered new exit (range 10) 28684 | -6/Garrison | Triggered checkpoint 28743 | -6/Garrison | Learned Factory security intel 28751 | -6/Garrison | Garrison Relay disabled 28932 | -6/Garrison | Discovered new exit (range 13) 28942 | -6/Garrison | P-70 Sage assimilated allied B6-WYE(m) 28999 | -6/Garrison | Triggered checkpoint 29055 | -6/Garrison | Garrison Relay disabled 29175 | -6/Garrison | Rescued a captive Derelict 29176 | -6/Garrison | Rescued a captive Derelict 29191 | -6/Garrison | Triggered checkpoint 29247 | -6/Garrison | Triggered checkpoint 29259 | -6/Garrison | Discovered new exit (range 5) 29333 | -6/Garrison | Entered Factory 29333 | -6/Factory | Accompanied by 9 allies 29683 | -6/Factory | First assault squad dispatched 29709 | -6/Factory | Spotted B-75 Beast 29777 | -6/Factory | Destroyed B-75 Beast 29807 | -6/Factory | Lost 6 allies 29861 | -6/Factory | Lost 3 allies 30023 | -6/Factory | Lost 4 parts (2n2w) 30031 | -6/Factory | Destroyed 10 combat bots 30292 | -6/Factory | Build established: Scavenger-Tank 30327 | -6/Factory | Garrison activated, responded to threat 30328 | -6/Factory | Cargo convoy interrupted 30374 | -6/Factory | High security lockdown imminent 30395 | -6/Factory | Destroyed 14 combat bots 30409 | -6/Factory | Identified exit to Garrison 30443 | -6/Factory | Entered Garrison 30520 | -6/Garrison | Phase Generator disabled 30817 | -6/Garrison | Triggered checkpoint 30829 | -6/Garrison | Garrison Relay disabled 31089 | -6/Garrison | Triggered checkpoint 31249 | -6/Garrison | Spotted B-86 Titan 31256 | -6/Garrison | Rewired B-86 Titan 31292 | -6/Garrison | Allies destroyed B-86 Titan 31322 | -6/Garrison | Lost 3 parts (2n1u) 31553 | -6/Garrison | Triggered checkpoint 31584 | -6/Garrison | Build established: Tank 31599 | -6/Garrison | Triggered checkpoint 31600 | -6/Garrison | Discovered new exit (range 14) 31634 | -6/Garrison | Discovered new exit (range 47) 31634 | -6/Garrison | Discovered new exit (range 40) 31634 | -6/Garrison | Discovered new exit (range 16) 31761 | -6/Garrison | Triggered checkpoint 31834 | -6/Garrison | Expanded RIF knowledge: Autooverride 32275 | -6/Garrison | Entered Factory 32275 | -5/Factory | Accompanied by 1 ally 32275 | -5/Factory | Evolved 2 slots: Propulsion x1, Utility x1 32382 | -5/Factory | Build established: Scavenger-Gunner 32559 | -5/Factory | Spotted B-75 Beast 32575 | -5/Factory | First assault squad dispatched 32647 | -5/Factory | Discovered new exit (range 3) 32759 | -5/Factory | Sucked down chute 32759 | -5/Factory | Entered Waste 32760 | -5/Waste | Met a frightened Derelict 32773 | -5/Waste | Spotted C-40 Crusher 32774 | -5/Waste | EMP discharged 32774 | -5/Waste | System corruption reached 10% 32812 | -5/Waste | Spotted C-40 Crusher 32813 | -5/Waste | Spotted C-40 Crusher 32833 | -5/Waste | Spotted C-40 Crusher 32841 | -5/Waste | Spotted C-40 Crusher 32853 | -5/Waste | Discovered new exit (range 16) 32853 | -5/Waste | Spotted C-40 Crusher 32871 | -5/Waste | Entered Factory 33404 | -5/Factory | Discovered new exit (range 20) 33799 | -5/Factory | Destroyed 8 combat bots 33897 | -5/Factory | Cargo convoy interrupted 34071 | -5/Factory | First assault squad dispatched 34333 | -5/Factory | Self-destructed Last Messages --------------- 34325_ Slug penetrates Earth. 34325_ Slug penetrates Wall. 34326_ C-30 ARC bursts open, deploying its payload. 34326_ G-67 Veteran unfolds itself. 34326_ G-50 Soldier unfolds itself. 34326_ B-60 Warrior unfolds itself. 34326_ G-50 Soldier unfolds itself. 34326_ E-15 Imp unfolds itself. 34326_ KE Penetrator blown off. 34326_ Imp. Medium Armor Plating blown off. 34326_ E-15 Imp destroyed. 34327_ K-01 Serf cleans the Assembly Bed. 34328_ P-70 Sage suffers critical hit (Destroy). 34328_ Destroyed Tesla Rifle. 34331_ System corrupted: Enh. Autogun jammed. 34333_ Enh. Autogun destroyed. 34333_ Relay Coupler [NC] destroyed. 34333_ >> Watcher Feeds: All visual feed links lost. 34333_ System corrupted by crushing effect (+4). 34333_ System corrupted by crushing effect (+3). Map ----- +----------------------------------------------------+ | | | | | | | | | | | | | | | | | | | | | | | | | | | | | | | ??????????????????????????????????????####???????? | | ???????????????????????????????????? ? ????? | | ?????????????????###########??????? ? ???? | | ?????????????????# ! #?????? ]]] ??? | | ########?????????# """ #????? ]]] ?? | | #?????????# """ #?????? ]]] ??? | | ###### #?????# ### """ != #??????? ??? | | ?????# #??????# ; "" #???????? ????? | | ###### #?????????# =Y" #?????????"""""""?????? | | #?????????# ! gpgb" #?????????? A?????? | | #???????# ; g%p!@ #############/######### | | #?????????#+###+##### | | #?????????# " ^ | | #?????????# | | ########?????????# | | #????????????#####+###+##### """ """""" """" | | #????????# # """"" """""" """" | | #??????????""" """ """ """ #!% """"" """""" """ | | ########???""" """ """ """ #! """""" | | # """ #?# """ """ """ """ #! | | # """ #?# # """""" """""" """" | | + """ #?# ! # """""" """""" """" | | # #?# = # """""" """""? """" | | # ] !#?#####"#####+####### """""" """"?? ""?? | | #! ##????????# ##### ??? | | ################## ???? | | #?????## T ???? | | #?????## ######### ???? | | #????# #!#??# #??# ###+########## ????? | | #???# ## #???##??####### #???? ????? | | ####"#?#!#????#?#??????# #?????#######????? | | #??# #??? #??????# ! #????????????????? | | #??# #??""" #??????# #????????????????? | | #??# # """" #??????# #????????????????? | | #??# + """" #??????# !!! #????????????????? | +----------------------------------------------------+ Best States ------------- Heat Dissipation 91 Energy Generation 23 Energy Capacity 340 Matter Stores 560 Matter Capacity 600 Sight Range 16 Terrain Scan Density 10 Armor Coverage 225 Resistance: TH 10 Resistance: EM 15 Core Shielding 20 Weapon Cycling 25 Evasion (%) 40 Targeting Accuracy 8 Core Analysis 6 Recoil Reduction 10 Offensive Hacking 10 Relay Coupler Types 1 Relay Coupler Value 31 Authchip Count 4 Item Schematics ----------------- Arm. Wheel | -9/Materials | Hacked Lgt. Treads | -9/Materials | Scanalyzed Lgt. Assault Rifle | -9/Materials | Hacked Hacking Suite | -9/Materials | Scanalyzed Autogun | -9/Materials | Scanalyzed Datajack | -9/Materials | Scanalyzed Imp. Flight Unit | -9/Materials | Scanalyzed Cmb. Antigrav System | -8/Materials | Scanalyzed Cold Fusion Reactor | -8/Materials | Scanalyzed Huge Storage Unit | -8/Materials | Hacked Lrg. Storage Unit | -8/Materials | Hacked Adv. Weapon Cycler | -8/Materials | Scanalyzed Exp. Heat Sink | -8/Materials | Scanalyzed Graphene Brace | -8/Materials | Scanalyzed Arm. Huge Wheel | -8/Materials | Scanalyzed Med. Storage Unit | -8/Materials | Hacked Robot Schematics ------------------ M-13 Machinist | -10/Materials | Hacked Fabricated ------------ Nothing Repaired ---------- Hvy. Assault Rifle | 31% | -9/Materials | Broken Exp. Heat Sink | 90% | -8/Materials | Broken Cold Fusion Reactor | 82% | -8/Materials | Broken Rnf. Fission Core | 34% | -8/Materials Adv. Weapon Cycler | 90% | -8/Materials | Broken Alien Tech Used ----------------- None Achievements -------------- None Challenges ------------ None Game ------ Seed AssaultDisruptionRouter Manual? 0 Play Time 03:40:52 Cumulative 1028.2 hours Start 2025.07.07 @ 21:56:42 End 2025.07.08 @ 23:00:27 Sessions 3 Manual Loads 0 Difficulty Rogue Special Mode None Game No. 518 Rogue 518 Adventurer 0 Explorer 0 Win Type - Total 23 Types 10/4/3/0/1/1/2/2/0/0 Lore% 88 Gallery% 89 Achievement% 83 Wizard Run 0 Options --------- Layout 0 ASCII 0 Keyboard 0 Movement Numpad Keybinds 0 Fullscreen 2 Font 24/Smallcaps Map View 76x50 Zoom Use 0% Tactical HUD 1 Map Filters NONE Filters SHIFT_HUE(315) Steam 1 RUN: ef3506d7-ee23-4db7-87ab-c473434de6d8